bitfinex-derivatives/quotes_ETHF0:USTF0_20251103
["timestamp","ask_amount","ask_price","bid_price","bid_amount"]
[1762214044659,0.50004,3600.5,3600.4,0.2337]
[1762214045069,0.73704,3600.5,3600.4,0.73375]
[1762214045570,0.50002,3600.7,3600.6,0.73372]
[1762214045869,0.4999,3601.5,3601.4,0.2337]
[1762214046065,0.8802,3601.5,3601.4,0.2337]
[1762214046266,0.4999,3601.5,3601.4,0.2337]
[1762214046463,0.5025606,3601.7,3601.6,0.73358]
[1762214046866,0.7395606,3601.7,3601.6,0.49988]
[1762214048171,0.4999,3601.5,3601.4,0.4999]
[1762214048372,0.73688,3601.6,3601.5,0.49989]
[1762214048566,0.237,3601.6,3601.5,0.49989]
[1762214048870,0.237,3601.6,3601.2,40.8]
[1762214048871,0.0026906,3601.7,3601.6,0.73358]
[1762214049260,0.5025606,3601.7,3601.6,0.73358]
[1762214049467,0.7395606,3601.7,3601.6,0.2337]
[1762214050369,0.0026906,3601.7,3601.6,0.73358]
[1762214051270,0.5025606,3601.7,3601.6,0.2337]
[1762214052675,0.5025606,3601.7,3601.6,0.73358]
[1762214054475,0.246,3601.6,3601.2,42.27699079]
[1762214054676,0.1452,3601.5,3600.9,1.47699079]
[1762214054973,0.49994,3601.2,3601.1,0.72214]
[1762214055370,0.3912,3601.0,3600.9,1.47699079]
[1762214055563,0.3912,3601.0,3600.7,1.47699079]
[1762214055564,0.74599,3600.8,3600.7,1.47699079]
[1762214055767,0.49999,3600.8,3600.7,0.72221]
[1762214056669,0.74599,3600.8,3600.7,0.2222]
[1762214056876,0.64517,3601.0,3600.7,0.72221]
[1762214057174,0.246,3600.8,3600.7,0.72221]
[1762214057375,0.1452,3601.0,3600.5,1.47699079]
[1762214057563,0.1452,3601.0,3600.5,0.64623]
[1762214057768,0.3912,3601.0,3600.9,0.49998]
[1762214057972,0.49997,3601.0,3600.9,0.49998]
[1762214058170,0.49995,3601.1,3600.9,0.49998]
[1762214058368,0.49997,3601.0,3600.9,0.72218]
[1762214058568,0.49997,3601.0,3600.9,0.2222]
[1762214058767,0.49997,3601.0,3600.9,0.72218]
[1762214058768,0.74597,3601.0,3600.9,0.72218]
[1762214058965,0.49994,3601.2,3601.0,0.49997]
[1762214059170,0.49995,3601.1,3601.0,0.49997]
[1762214059672,0.74595,3601.1,3601.0,0.49997]
[1762214060270,0.246,3601.1,3601.0,0.49997]
[1762214060476,0.246,3601.1,3601.0,0.72217]
[1762214061170,0.246,3601.3,3601.2,0.49993]
[1762214061371,0.74592,3601.3,3601.2,0.49993]
[1762214062371,0.74594,3601.2,3601.1,0.49995]
[1762214063076,0.49996,3601.1,3600.6,1.47699079]
[1762214063268,0.49996,3601.1,3600.7,1.47699079]
[1762214063472,0.49994,3601.2,3600.7,2.72702079]
[1762214063671,0.74594,3601.2,3601.1,0.49995]
[1762214064179,0.49992,3601.4,3601.2,0.49992]
[1762214064375,0.49992,3601.3,3601.2,0.49992]
[1762214064577,0.74592,3601.3,3601.2,0.49992]
[1762214065581,0.1452,3601.5,3601.0,0.1462]
[1762214065777,0.49996,3601.1,3601.0,0.86837]
[1762214067678,0.49996,3601.1,3601.0,0.3684]
[1762214067884,0.49996,3601.1,3601.0,0.86837]
[1762214068283,0.2414,3600.8,3600.7,1.47699079]
[1762214068586,0.2414,3600.3,3600.2,1.97931803]
[1762214068880,0.50001,3600.8,3600.6,0.50001]
[1762214069083,0.1385,3601.0,3600.5,1.38798]
[1762214069275,1.99291,3601.4,3601.3,0.2461]
[1762214069480,0.49991,3601.4,3601.3,0.2461]
[1762214069680,0.74131,3601.4,3601.3,0.2461]
[1762214069881,0.74131,3601.4,3601.3,0.74602]
[1762214070881,5.0841,3601.5,3601.4,0.74601]
[1762214071175,0.1454,3602.0,3601.6,0.74598]
[1762214071375,0.49984,3601.9,3601.6,0.74598]
[1762214071576,0.2440906,3601.7,3601.6,0.74598]
[1762214074381,0.0026906,3601.7,3601.6,0.74598]
[1762214077186,0.5025606,3601.7,3601.6,0.74598]
[1762214077385,0.0026906,3601.7,3601.6,0.74598]
[1762214083887,0.0026906,3601.7,3601.6,2.22297079]
[1762214084281,0.49976,3602.6,3602.5,0.49975]
[1762214084487,0.74116,3602.6,3602.5,0.74585]
[1762214084785,0.1385,3603.0,3602.6,0.49973]
[1762214084986,0.2324,3602.7,3602.6,0.49973]
[1762214085181,0.1385,3603.0,3602.0,0.1379]
[1762214085182,1.38773,3603.0,3602.0,0.1379]
[1762214085386,1.38773,3603.0,3602.4,0.73087]
[1762214085387,0.2324,3602.5,3602.4,0.73087]
[1762214085592,0.14122073,3603.0,3602.5,0.2311]
[1762214085793,0.49974,3602.7,3602.6,0.73084]
[1762214086894,0.4997,3602.9,3602.8,0.2311]
[1762214087193,0.4997,3602.9,3602.8,0.23449508]
[1762214087394,0.50241073,3603.0,3602.9,0.7308]
[1762214087688,0.50241073,3603.0,3602.9,0.2311]
[1762214088290,0.73481073,3603.0,3602.9,0.2311]
[1762214088795,0.7321,3602.9,3602.8,0.00339508]
[1762214098592,0.73223,3602.0,3601.9,41.29984]
[1762214099097,0.2324,3601.7,3601.6,0.49987]
[1762214099289,0.2324,3601.7,3601.6,0.73097]
[1762214099491,0.2324,3601.7,3601.6,41.53097]
[1762214099685,0.49984,3601.9,3601.6,40.80217791]
[1762214100599,0.3796,3602.0,3601.9,0.49984]
[1762214100798,0.49984,3601.9,3601.8,0.73095]
[1762214101794,0.49984,3601.9,3601.8,0.2311]
[1762214102000,0.73224,3601.9,3601.8,0.73095]
[1762214102297,0.49983,3602.1,3601.9,0.73094]
[1762214102497,0.49983,3602.0,3601.9,0.73094]
[1762214103297,1.24935,3602.7,3601.6,40.80217791]
[1762214103298,1.493,3602.9,3602.8,0.2311]
[1762214103593,0.00272073,3603.0,3602.9,0.7308]
[1762214104099,0.00272073,3603.0,3602.9,41.5308]
[1762214109001,0.00272073,3603.0,3602.9,51.3118]
[1762214111102,0.00272073,3603.0,3602.9,42.51331258]
[1762214113103,0.00272073,3603.0,3602.9,42.51387575]
[1762214113905,0.00272073,3603.0,3602.9,41.5308]
[1762214114905,0.50241073,3603.0,3602.9,41.5308]
[1762214115406,0.00272073,3603.0,3602.9,41.5308]
[1762214117203,0.00272073,3603.0,3602.9,43.00978676]
[1762214119701,0.50241073,3603.0,3602.9,43.00978676]
[1762214119901,0.00272073,3603.0,3602.9,43.00978676]
[1762214120304,0.00272073,3603.0,3602.9,52.78778676]
[1762214127716,0.00272073,3603.0,3602.9,51.3088]
[1762214128013,0.00272073,3603.0,3602.9,53.00191415]
[1762214128218,0.00272073,3603.0,3602.9,51.52628055]
[1762214128513,0.49961,3603.6,3603.5,0.87502]
[1762214128911,0.49959,3603.7,3603.6,0.74418]
[1762214129410,0.74087838,3603.7,3603.6,0.74418]
[1762214129912,0.00238838,3603.7,3603.6,0.74418]
[1762214131619,0.50197838,3603.7,3603.6,0.74418]
[1762214131818,0.49962,3603.5,3603.4,1.22842761]
[1762214132110,0.00238838,3603.7,3603.4,1.22842761]
[1762214132111,0.49961,3603.6,3603.5,0.2446]
[1762214132311,0.49961,3603.6,3603.5,1.72973584]
[1762214133119,0.49961,3603.6,3603.5,0.74422]
[1762214133419,0.00238838,3603.7,3603.5,0.74422]
[1762214133618,0.74087838,3603.7,3603.6,0.98687235]
[1762214133918,0.74087838,3603.7,3603.6,0.4996]
[1762214134123,0.74087838,3603.7,3603.6,1.73110281]
[1762214134617,0.74087838,3603.7,3603.6,1.23150281]
[1762214134822,0.00238838,3603.7,3603.6,0.74421]
[1762214138319,0.49948,3604.6,3604.5,0.49948]
[1762214138518,0.73838,3604.6,3604.5,0.49948]
[1762214139117,0.50248744,3604.6,3604.5,0.00246306]
[1762214139310,0.74138744,3604.6,3604.5,0.00246306]
[1762214143818,0.74138744,3604.6,3604.5,0.88364306]
[1762214143819,0.00301744,3604.6,3604.5,0.88364306]
[1762214144720,0.50248744,3604.6,3604.5,0.88364306]
[1762214144925,0.50248744,3604.6,3604.5,0.74654306]
[1762214145125,0.00301744,3604.6,3604.5,0.74654306]
[1762214146823,0.50248744,3604.6,3604.5,0.74654306]
[1762214147025,0.50248744,3604.6,3604.5,0.24706306]
[1762214148324,0.73408744,3604.6,3604.5,0.24706306]
[1762214149224,0.73408744,3604.6,3604.5,0.00246306]
[1762214150229,0.00301744,3604.6,3604.5,0.86624306]
[1762214150622,0.73408744,3604.6,3604.5,0.73284306]
[1762214152330,0.00301744,3604.6,3604.5,0.86624306]
[1762214153527,0.50248744,3604.6,3604.5,0.36676306]
[1762214153727,0.50248744,3604.6,3604.5,0.86624306]
[1762214153928,0.00301744,3604.6,3604.5,0.86624306]
[1762214155334,0.73408744,3604.6,3604.5,0.00246306]
[1762214155923,0.99925905,3604.6,3604.5,0.00246306]
[1762214156531,0.49955,3604.1,3604.0,0.2309]
[1762214156730,0.73115,3604.1,3604.0,0.2309]
[1762214156932,0.49955,3604.1,3604.0,0.2309]
[1762214157435,0.49955,3604.0,3603.7,0.98547769]
[1762214157634,1.38312,3604.5,3603.8,0.2309]
[1762214157635,0.73117,3603.9,3603.8,0.2309]
[1762214157835,0.73117,3603.9,3603.8,0.73048]
[1762214158236,0.73117,3603.9,3603.8,1.71595769]
[1762214158733,0.73117,3603.9,3603.8,1.48505769]
[1762214160636,0.2316,3603.9,3603.8,1.48505769]
[1762214161036,0.73116,3603.9,3603.8,1.48505769]
[1762214161837,0.73116,3603.9,3603.8,0.98547769]
[1762214162037,0.73118,3603.8,3603.7,0.00268459]
[1762214163034,0.2316,3603.2,3603.1,1.48514769]
[1762214163338,0.73126,3603.2,3603.1,1.71274612]
[1762214163939,0.73126,3603.2,3603.1,1.71621002]
[1762214164142,0.73126,3603.2,3603.1,0.7340339]
[1762214164342,0.73126,3603.2,3603.1,1.48536602]
[1762214164739,0.73126,3603.2,3603.1,0.98569602]
[1762214164933,9.8964,3604.0,3603.4,0.2309]
[1762214165242,1.24879,3604.3,3603.9,0.2309]
[1762214165432,0.73115,3604.0,3603.9,0.2309]
[1762214165634,0.86555,3604.0,3603.9,0.2309]
[1762214165841,0.86555,3604.0,3603.7,0.73049]
[1762214165842,0.49958,3603.8,3603.7,0.73049]
[1762214166043,0.2316,3603.9,3603.8,0.73046]
[1762214166244,0.1344,3604.0,3603.9,0.73046]
[1762214166542,0.63395,3604.0,3603.9,0.73046]
[1762214166742,0.49954,3604.1,3603.9,0.73046]
[1762214167244,0.49954,3604.1,3604.0,0.49955]
[1762214167544,0.73114,3604.1,3604.0,0.49955]
[1762214167934,0.73114,3604.1,3604.0,0.73045]
[1762214168139,11.14511,3604.5,3603.7,0.49959]
[1762214168140,0.49957,3603.9,3603.7,0.49959]
[1762214168338,0.73115,3604.1,3604.0,0.49955]
[1762214168646,0.49955,3604.0,3603.9,0.73046]
[1762214172343,0.49955,3604.0,3603.9,0.2309]
[1762214172645,0.73115,3604.0,3603.9,0.2309]
[1762214173949,0.73115,3604.0,3603.9,0.73046]
[1762214174143,0.73115,3604.0,3603.5,0.1334]
[1762214174144,0.2316,3604.2,3604.1,0.49953]
[1762214174349,0.49949,3604.4,3604.3,0.2309]
[1762214174647,10.39588,3604.5,3604.4,0.73019]
[1762214174846,9.762,3604.5,3604.4,0.73019]
[1762214176950,0.00301744,3604.6,3604.5,0.86588]
[1762214179650,0.50248744,3604.6,3604.5,0.3664]
[1762214180043,0.50248744,3604.6,3604.5,0.86588]
[1762214180242,0.00301744,3604.6,3604.5,0.86588]
[1762214180748,0.00301744,3604.6,3604.5,41.66588]
[1762214181348,0.50248744,3604.6,3604.5,41.1664]
[1762214181548,0.50248744,3604.6,3604.5,0.3664]
[1762214182542,0.50248744,3604.6,3604.5,0.86588]
[1762214183045,0.50248744,3604.6,3604.5,0.3664]
[1762214183243,0.7398,3604.4,3604.3,0.49951]
[1762214183645,0.7398,3604.4,3604.3,0.73021]
[1762214183844,0.4995,3604.4,3604.3,0.73021]
[1762214185451,0.2403,3604.4,3604.3,0.73021]
[1762214185645,0.49948,3604.5,3604.4,0.49949]
[1762214185851,0.49948,3604.5,3604.4,0.73019]
[1762214186255,0.49948,3604.5,3604.4,0.2307]
[1762214186754,0.49948,3604.5,3604.4,0.73019]
[1762214186954,0.49948,3604.5,3604.4,0.2307]
[1762214187252,0.49948,3604.5,3604.4,0.73019]
[1762214188551,0.49948,3604.5,3604.4,0.49949]
[1762214188756,0.1431,3604.5,3604.2,0.2349]
[1762214188959,0.7296,3604.4,3604.3,0.4995]
[1762214189351,0.7296,3604.4,3604.3,0.7344]
[1762214189857,0.4995,3604.4,3604.3,0.7344]
[1762214190660,0.7296,3604.4,3604.3,0.7344]
[1762214191562,0.2301,3604.4,3604.3,0.7344]
[1762214191756,0.72959,3604.4,3604.3,0.7344]
[1762214192056,0.1431,3604.5,3604.0,0.49955]
[1762214192057,0.72964,3604.1,3604.0,0.49955]
[1762214192658,0.87276,3604.0,3603.9,0.49956]
[1762214193359,0.2301,3603.9,3603.8,0.49957]
[1762214193754,0.49955,3604.1,3604.0,0.2349]
[1762214194457,0.49952,3604.2,3604.1,0.49952]
[1762214195364,0.49954,3604.1,3604.0,0.73445]
[1762214195564,0.72964,3604.1,3604.0,0.73445]
[1762214196265,0.2301,3604.1,3604.0,0.73445]
[1762214196766,0.1431,3604.5,3604.3,0.49951]
[1762214196767,0.2301,3604.4,3604.3,0.49951]
[1762214196964,0.49952,3604.3,3604.1,0.49953]
[1762214197164,0.49952,3604.3,3604.2,0.49952]
[1762214197365,0.72962,3604.3,3604.2,0.49952]
[1762214197970,0.23311744,3604.6,3604.5,0.2349]
[1762214198165,0.73258744,3604.6,3604.5,0.2349]
[1762214198870,0.49949,3604.5,3604.3,0.4995]
[1762214199068,0.00301744,3604.6,3604.3,0.4995]
[1762214199669,0.00301744,3604.6,3604.0,0.125]
[1762214199670,0.72958,3604.5,3604.4,0.49949]
[1762214201275,0.23311744,3604.6,3604.5,0.49948]
[1762214201572,0.23311744,3604.6,3604.5,0.73438]
[1762214201573,0.73258744,3604.6,3604.5,0.73438]
[1762214201768,0.00301744,3604.6,3604.5,0.73438]
[1762214201967,0.00301744,3604.6,3604.5,0.86838]
[1762214202576,0.00301744,3604.6,3604.5,0.73438]
[1762214204272,0.00301744,3604.6,3604.5,2.34026708]
[1762214207075,0.50248744,3604.6,3604.5,2.34026708]
[1762214207271,0.50248744,3604.6,3604.5,0.86838]
[1762214207668,0.00301744,3604.6,3604.5,0.86838]
[1762214209976,0.50248744,3604.6,3604.5,0.73438]
[1762214210274,0.00301744,3604.6,3604.5,0.73438]
[1762214211678,0.00301744,3604.6,3604.5,0.86738]
[1762214214772,0.49935,3605.5,3605.4,0.2324]
[1762214214973,0.1431,3606.0,3605.5,0.63274]
[1762214215166,0.1431,3606.0,3605.6,0.49932]
[1762214215167,0.49931,3605.8,3605.6,0.49932]
[1762214215376,1.2481,3606.3,3605.6,0.49932]
[1762214215377,0.13912076,3605.7,3605.6,0.73172]
[1762214215777,0.14172248,3605.7,3605.6,2.20653914]
[1762214216273,0.14172248,3605.7,3605.6,0.73172]
[1762214217178,0.14172248,3605.7,3605.6,2.20653914]
[1762214217374,0.14172248,3605.7,3605.6,0.73172]
[1762214219786,0.14172248,3605.7,3605.6,0.2324]
[1762214219979,0.49936,3605.4,3605.3,0.73177]
[1762214220178,0.1444,3605.5,3605.1,0.2324]
[1762214220373,0.4994,3605.2,3605.1,0.73179]
[1762214220583,0.49941,3605.0,3604.8,0.49944]
[1762214220784,0.49941,3605.0,3604.9,0.2324]
[1762214221375,0.63853076,3605.0,3604.9,0.73182]
[1762214221780,0.63853076,3605.0,3604.9,0.2324]
[1762214222186,0.63853076,3605.0,3604.9,0.73182]
[1762214222687,0.63853076,3605.0,3604.9,0.2324]
[1762214222986,0.63853076,3605.0,3604.9,0.73182]
[1762214223287,0.63853076,3605.0,3604.9,0.2324]
[1762214224482,0.63853076,3605.0,3604.9,0.73182]
[1762214224787,0.63853076,3605.0,3604.9,0.2324]
[1762214225183,0.63853076,3605.0,3604.9,0.73182]
[1762214226092,0.63853076,3605.0,3604.9,0.2324]
[1762214226286,0.63853076,3605.0,3604.9,0.73182]
[1762214226989,0.13912076,3605.0,3604.9,0.73182]
[1762214227884,0.63853076,3605.0,3604.9,0.73182]
[1762214228990,0.63853076,3605.0,3604.9,1.71353187]
[1762214231395,0.63853076,3605.0,3604.9,0.73182]
[1762214234895,0.13912076,3605.0,3604.9,0.73182]
[1762214235097,0.63853076,3605.0,3604.9,0.73182]
[1762214235798,0.63853076,3605.0,3604.9,0.2324]
[1762214236098,0.63853076,3605.0,3604.9,0.73182]
[1762214236889,0.63853076,3605.0,3604.9,0.2324]
[1762214237091,0.63853076,3605.0,3604.8,0.98278536]
[1762214237092,0.72582,3604.9,3604.8,0.98278536]
[1762214237288,0.27732076,3605.0,3604.0,0.3506]
[1762214237289,0.49954,3604.1,3604.0,0.3506]
[1762214237598,0.86506076,3604.1,3604.0,0.2256]
[1762214239399,0.63866076,3604.1,3604.0,0.2256]
[1762214239896,0.86506076,3604.1,3604.0,0.2256]
[1762214240299,0.86506076,3604.1,3604.0,0.72515]
[1762214241001,0.86506076,3604.1,3604.0,0.2256]
[1762214241701,0.86506076,3604.1,3603.9,0.49956]
[1762214241702,0.49955,3604.0,3603.9,0.72516]
[1762214242095,0.726,3603.7,3603.6,0.2256]
[1762214242299,0.726,3603.7,3603.5,50.6798]
[1762214242300,0.72598,3603.9,3603.8,0.49958]
[1762214242594,0.86510076,3603.9,3603.8,0.72518]
[1762214242996,0.86510076,3603.9,3603.8,0.2256]
[1762214244100,0.86510076,3603.9,3603.8,0.72518]
[1762214244403,0.13912076,3603.9,3603.8,0.72518]
[1762214244699,1.24871,3604.6,3604.1,0.49952]
[1762214245100,0.49952,3604.2,3604.1,0.49952]
[1762214245501,0.49954,3604.1,3604.0,0.2256]
[1762214245701,0.72594,3604.1,3604.0,0.72515]
[1762214247100,0.72594,3604.1,3604.0,0.2256]
[1762214247305,0.72598,3603.8,3603.7,0.49958]
[1762214247606,0.2264,3603.8,3603.7,0.72518]
[1762214247805,0.86416,3604.0,3603.9,0.49956]
[1762214248098,0.49958,3603.9,3603.8,0.49958]
[1762214248300,0.72598,3603.9,3603.8,0.49958]
[1762214248701,0.72598,3603.9,3603.8,0.72558]
[1762214249604,0.2323,3603.7,3603.6,0.72559]
[1762214249799,0.49958,3603.8,3603.7,0.72559]
[1762214250307,0.4996,3603.7,3603.5,41.44442]
[1762214250502,0.4996,3603.7,3603.6,0.4996]
[1762214250901,0.4996,3603.7,3603.6,0.7256]
[1762214251102,0.7319,3603.7,3603.6,0.7256]
[1762214251306,0.7319,3603.6,3603.5,0.49962]
[1762214252410,0.2323,3603.6,3603.5,0.72562]
[1762214252798,0.7319,3603.6,3603.5,0.72562]
[1762214254009,0.2323,3603.4,3603.3,10.23365]
[1762214254305,0.73193,3603.4,3603.3,0.49965]
[1762214254705,0.2323,3603.4,3603.3,0.72565]
[1762214254911,0.49958,3603.8,3603.7,0.226]
[1762214255301,1.38693,3604.5,3603.6,1.24901]
[1762214255507,0.49953,3604.2,3604.1,0.72553]
[1762214256011,0.49951,3604.3,3604.2,0.72551]
[1762214256506,0.09818856,3605.9,3604.0,0.1466]
[1762214256704,0.09818856,3605.9,3603.1,0.0034639]
[1762214256705,1.99049368,3606.9,3606.5,0.49919]
[1762214256910,0.1393,3607.0,3606.6,1.57]
[1762214257104,0.1393,3607.0,3606.8,1.47148728]
[1762214257310,0.76382297,3606.9,3606.7,40.8]
[1762214257607,0.2323,3606.8,3606.7,40.80311517]
[1762214257814,0.2323,3606.8,3606.7,0.00311517]
[1762214258312,0.37122748,3606.8,3606.7,0.00311517]
[1762214259403,0.99612297,3606.8,3606.7,0.00311517]
[1762214262926,0.2323,3605.7,3605.1,0.49939]
[1762214263222,0.1393,3605.5,3605.3,0.49936]
[1762214263428,0.13892748,3605.4,3605.3,0.54676]
[1762214263822,0.13892748,3605.4,3605.3,0.5495147]
[1762214264022,0.13892748,3605.4,3605.3,6.1765147]
[1762214264228,0.13892748,3605.4,3605.3,0.5495147]
[1762214264417,0.13892748,3605.4,3605.3,10.3275147]
[1762214265824,0.13892748,3605.4,3605.3,0.5495147]
[1762214266026,0.1393,3606.0,3605.9,0.0471]
[1762214266727,0.1393,3607.0,3606.4,0.0471]
[1762214266924,0.3696,3606.5,3605.5,1.24836]
[1762214267131,0.2303,3605.9,3605.8,0.97627262]
[1762214267332,0.2303,3605.9,3605.7,0.49931]
[1762214268031,0.72959,3605.9,3605.7,0.49931]
[1762214268330,0.72959,3605.9,3605.8,0.4993]
[1762214269734,0.7296,3605.8,3605.7,0.4993]
[1762214269923,0.2303,3605.8,3605.7,10.2783]
[1762214270531,0.1348,3605.5,3605.3,0.97902732]
[1762214270730,0.1348,3605.5,3605.4,9.8261]
[1762214270927,0.1348,3605.5,3605.4,10.32546]
[1762214272838,0.63414,3605.5,3605.4,10.32546]
[1762214273138,0.63414,3605.5,3605.4,0.54646]
[1762214273940,0.1348,3605.5,3605.4,0.54646]
[1762214274541,0.63414,3605.5,3605.4,0.54646]
[1762214274744,0.86444,3605.5,3605.4,0.49936]
[1762214275136,0.86444,3605.5,3605.4,10.26836]
[1762214275642,0.72966,3605.4,3605.3,0.0027547]
[1762214277042,0.72966,3605.4,3605.3,0.5021247]
[1762214277545,0.72966,3605.4,3605.3,0.0027547]
[1762214278045,0.2303,3605.4,3605.3,0.5021247]
[1762214278342,0.72966,3605.4,3605.3,0.5021247]
[1762214280945,0.2303,3605.4,3605.3,0.5021247]
[1762214281142,0.72966,3605.4,3605.3,0.0027547]
[1762214284345,0.72966,3605.4,3605.3,0.97902732]
[1762214284948,0.72966,3605.4,3605.3,0.0027547]
[1762214286344,0.72966,3605.4,3605.3,0.97902732]
[1762214287348,0.72966,3605.4,3605.3,0.0027547]
[1762214287850,0.72967,3605.3,3605.2,0.24695295]
[1762214288846,0.72967,3605.3,3605.2,0.24988171]
[1762214289348,0.72967,3605.3,3605.2,0.00292876]
[1762214293955,0.72973,3604.9,3604.8,1.4704094]
[1762214294252,0.49947,3604.6,3604.5,1.4704094]
[1762214294452,0.72979,3604.4,3604.3,1.4704094]
[1762214294649,0.74291,3604.3,3604.2,1.4704094]
[1762214295053,0.74538569,3604.3,3604.2,1.47315687]
[1762214296959,0.74538569,3604.3,3604.2,0.00274747]
[1762214302255,0.74538569,3604.3,3604.2,4.747e-05]
[1762214302461,0.74303,3603.4,3603.3,1.9700494]
[1762214302763,1.24895,3603.8,3603.1,1.4704094]
[1762214302764,0.74306,3603.2,3603.1,1.4704094]
[1762214302966,0.74306,3603.2,3603.1,0.49967]
[1762214303469,0.74306,3603.2,3603.1,0.50171817]
[1762214303664,0.74306,3603.2,3603.1,0.00204817]
[1762214304165,0.74306,3603.2,3603.1,0.50171817]
[1762214304366,0.74306,3603.2,3603.1,0.73831817]
[1762214307165,0.74306,3603.2,3603.1,0.23864817]
[1762214307464,0.74306,3603.2,3603.1,0.00204817]
[1762214307766,0.74306,3603.2,3603.1,0.50171817]
[1762214307963,0.74306,3603.2,3603.1,0.00204817]
[1762214308164,0.74306,3603.2,3603.1,0.50171817]
[1762214308367,0.74306,3603.2,3603.1,0.00204817]
[1762214308864,0.74306,3603.2,3603.1,0.50171817]
[1762214309059,0.1382,3603.5,3603.4,0.72763]
[1762214309060,0.2266,3603.5,3603.4,0.72763]
[1762214309259,0.2266,3603.7,3603.6,0.7276]
[1762214309460,0.72619,3603.7,3603.6,0.7276]
[1762214310066,0.2266,3603.7,3603.6,0.7276]
[1762214310260,0.49958,3603.8,3603.7,0.72757]
[1762214310463,0.72618,3603.8,3603.7,0.72757]
[1762214313165,9.8844,3604.0,3603.7,0.228]
[1762214313367,9.9636,3604.0,3603.9,0.72756]
[1762214314463,10.46315,3604.0,3603.9,0.72756]
[1762214314969,0.72615,3604.0,3603.9,0.72756]
[1762214315864,0.72615,3604.0,3603.9,0.228]
[1762214316270,0.72615,3604.0,3603.9,0.72756]
[1762214316468,0.49953,3604.2,3604.1,0.72752]
[1762214316667,0.72858569,3604.3,3604.2,0.228]
[1762214319171,0.49954,3604.1,3604.0,1.84977144]
[1762214319366,0.49954,3604.1,3604.0,0.3673]
[1762214319566,0.72615,3604.0,3603.9,1.4704094]
[1762214319766,0.72615,3604.0,3603.9,0.49956]
[1762214320165,0.72618,3603.8,3603.7,1.4704094]
[1762214320370,0.72626,3603.2,3603.1,1.47245757]
[1762214321771,0.72626,3603.2,3603.1,0.00204817]
[1762214322270,0.72626,3603.2,3603.1,1.47245757]
[1762214322466,0.72626,3603.2,3603.1,1.97212757]
[1762214323274,0.72626,3603.2,3603.1,1.47245757]
[1762214324274,0.72626,3603.2,3603.1,0.00204817]
[1762214324979,0.72626,3603.2,3603.1,1.47965185]
[1762214328172,0.72626,3603.2,3603.1,1.97932185]
[1762214328873,0.72626,3603.2,3603.1,1.47965185]
[1762214329778,0.72626,3603.2,3603.1,2.22262185]
[1762214330076,1.24895,3603.8,3603.3,0.49965]
[1762214330270,0.73849,3603.7,3603.6,0.73768937]
[1762214334479,0.73849,3603.7,3603.6,0.2433]
[1762214334975,0.7385,3603.6,3603.5,1.12848583]
[1762214335174,0.7385,3603.6,3603.5,0.98358583]
[1762214335977,0.7385,3603.6,3603.5,1.22688583]
[1762214336179,0.87592,3603.5,3603.4,0.98358583]
[1762214336376,0.73853,3603.4,3603.3,0.98358583]
[1762214338981,0.73855,3603.3,3603.2,0.98358583]
[1762214339574,0.73856,3603.2,3603.1,0.985634]
[1762214340482,0.73856,3603.2,3603.1,0.00204817]
[1762214340879,0.73856,3603.2,3603.1,0.73964255]
[1762214343080,0.73856,3603.2,3603.1,0.00204817]
[1762214347897,0.73856,3603.2,3603.1,0.73964255]
[1762214348788,0.73856,3603.2,3603.1,0.98294255]
[1762214349089,0.49966,3603.2,3603.1,0.24534817]
[1762214349882,0.73856,3603.2,3603.1,0.24534817]
[1762214350284,0.73856,3603.2,3603.1,1.72072692]
[1762214350680,0.49962,3603.5,3603.4,0.2433]
[1762214351084,0.73852,3603.5,3603.4,0.2433]
[1762214352192,0.73852,3603.5,3603.4,0.74293]
[1762214352891,0.73852,3603.5,3603.4,0.2433]
[1762214355294,0.73852,3603.5,3603.4,1.7210908]
[1762214357597,0.73852,3603.5,3603.4,0.2433]
[1762214360098,0.49962,3603.5,3603.4,0.2433]
[1762214360398,0.1348,3604.5,3604.2,0.2425]
[1762214360701,0.73198569,3604.3,3604.2,1.4777908]
[1762214361199,0.00247569,3604.3,3604.2,2.2198108]
[1762214361401,0.50198569,3604.3,3604.2,1.7202908]
[1762214361600,0.73198569,3604.3,3604.2,1.7202908]
[1762214362198,0.73198569,3604.3,3604.2,1.4777908]
[1762214362503,0.49952,3604.2,3604.1,1.7202908]
[1762214362802,0.72952,3604.2,3604.1,1.7202908]
[1762214363100,0.49954,3604.1,3604.0,1.4777908]
[1762214363300,0.49958,3603.9,3603.5,42.76251611]
[1762214363607,0.49958,3603.8,3603.5,42.76251611]
[1762214363797,0.49958,3603.8,3603.7,0.74209]
[1762214364103,0.49958,3603.8,3603.7,2.21680995]
[1762214365701,0.1463,3604.0,3603.8,0.49957]
[1762214365891,0.1463,3604.0,3603.9,0.98283396]
[1762214365892,0.64585,3604.0,3603.9,0.98283396]
[1762214366602,0.64585,3604.0,3603.9,1.48239396]
[1762214366901,0.64585,3604.0,3603.9,1.72489396]
[1762214367101,0.64585,3604.0,3603.9,0.74206]
[1762214367302,0.1463,3604.0,3603.9,0.74206]
[1762214367703,0.49954,3604.1,3604.0,0.74205]
[1762214367896,0.49952,3604.2,3604.1,0.74203]
[1762214368293,0.50198569,3604.3,3604.2,0.74202]
[1762214368497,0.50198569,3604.3,3604.2,1.47851724]
[1762214370506,0.00247569,3604.3,3604.2,1.47851724]
[1762214370806,0.00247569,3604.3,3604.2,1.72373858]
[1762214377505,0.73198569,3604.3,3604.2,0.98171858]
[1762214377710,0.72602,3604.2,3604.1,0.98171858]
[1762214378311,0.72602,3604.2,3604.1,0.49954]
[1762214378710,0.72604,3604.1,3604.0,1.47471995]
[1762214379011,0.72604,3604.1,3604.0,1.97426995]
[1762214380117,0.2265,3604.1,3604.0,1.97426995]
[1762214380516,0.72604,3604.1,3604.0,1.97426995]
[1762214381811,0.2265,3604.1,3604.0,1.97426995]
[1762214382317,0.2265,3604.1,3604.0,0.49955]